bitfinex/quotes_ETHUSD_20241101
["timestamp","ask_amount","ask_price","bid_price","bid_amount"]
[1730442357663,3.98924,2506.8,2506.4,1.11646506]
[1730442360486,3.98924,2506.8,2506.4,1.41499258]
[1730442361490,7.97848,2506.8,2506.4,1.41499258]
[1730442361637,7.97848,2506.8,2506.4,1.11646506]
[1730442361841,3.98924,2506.8,2506.4,1.41502816]
[1730442362040,3.98924,2506.8,2506.4,1.11646506]
[1730442362288,3.7909,2507.1,2506.4,1.11646506]
[1730442362472,3.98907,2506.9,2506.4,0.84862188]
[1730442362652,3.98883,2507.0,2506.6,0.55]
[1730442363340,3.98883,2507.0,2506.7,0.7828]
[1730442363781,7.97775,2507.0,2506.7,0.7828]
[1730442363970,3.98883,2507.0,2506.7,0.7828]
[1730442364642,7.97775,2507.0,2506.7,0.7828]
[1730442364953,7.97774,2507.0,2506.7,0.7828]
[1730442365177,3.98883,2507.0,2506.7,0.7828]
[1730442366478,3.98907,2506.9,2506.7,0.7828]
[1730442367663,3.98883,2507.0,2506.7,0.7828]
[1730442367988,3.989,2506.9,2506.7,0.7828]
[1730442368550,3.98883,2507.0,2506.7,0.7828]
[1730442370469,3.98831,2507.4,2506.9,0.55]
[1730442370664,7.97664,2507.4,2507.0,0.8065]
[1730442370908,3.98831,2507.4,2507.0,0.8065]
[1730442371404,3.98837,2507.3,2507.0,0.8065]
[1730442371607,3.98831,2507.4,2507.1,0.55]
[1730442371814,3.98796,2507.6,2507.1,0.62976688]
[1730442372115,3.98716,2508.1,2507.7,0.55]
[1730442372332,3.9874,2507.9,2507.7,0.55]
[1730442372621,3.98721,2508.1,2507.7,0.55]
[1730442372822,3.98748,2507.9,2507.6,0.7941]
[1730442373049,3.98748,2507.9,2507.7,0.55]
[1730442373050,7.97496,2507.9,2507.7,0.55]
[1730442373336,7.97503,2507.9,2507.7,0.55]
[1730442373513,3.98748,2507.9,2507.7,0.55]
[1730442374619,3.98747,2507.9,2507.7,0.55]
[1730442375595,3.98755,2507.8,2507.7,0.55]
[1730442376623,3.98803,2507.5,2507.2,0.8313]
[1730442376930,4.35499488,2507.8,2507.2,0.8313]
[1730442376931,3.98835,2507.3,2507.2,0.8313]
[1730442377095,3.98835,2507.3,2506.8,0.8313]
[1730442377408,3.98835,2507.3,2506.9,0.5885741]
[1730442378017,7.97654,2507.4,2507.0,0.55]
[1730442378220,7.97652,2507.4,2507.0,0.55]
[1730442379619,3.9882,2507.4,2507.0,0.55]
[1730442379830,7.9765,2507.4,2507.0,0.55]
[1730442380399,3.98853,2507.2,2507.0,0.55]
[1730442380736,6.98758,2507.8,2506.8,0.8313]
[1730442380737,3.98883,2507.0,2506.8,0.8313]
[1730442381035,3.98883,2507.0,2506.5,0.7904]
[1730442381036,3.98916,2506.8,2506.5,0.7904]
[1730442381839,3.98883,2507.0,2506.5,0.7904]
[1730442382026,3.98903,2506.9,2506.5,0.7904]
[1730442382244,3.98903,2506.9,2506.6,0.55]
[1730442382696,3.98837,2507.3,2506.7,3.98923]
[1730442383056,3.98837,2507.3,2507.0,0.55]
[1730442383400,7.97685,2507.3,2507.0,0.55]
[1730442383600,3.98837,2507.3,2507.0,0.55]
[1730442384044,7.97682,2507.3,2507.0,0.55]
[1730442384413,3.98837,2507.3,2507.0,0.55]
[1730442385428,3.0,2507.4,2507.0,0.55]
[1730442385733,4.686578,2507.7,2507.2,0.55]
[1730442385734,3.98782,2507.7,2507.2,0.55]
[1730442385935,3.98782,2507.7,2507.2,1.41594236]
[1730442386238,3.98789,2507.6,2507.2,1.41594236]
[1730442386814,3.98789,2507.6,2507.1,0.7614]
[1730442386815,3.98846,2507.3,2507.1,0.7614]
[1730442387746,3.98812,2507.5,2507.1,0.7614]
[1730442387747,3.98823,2507.4,2507.1,0.7614]
[1730442387908,3.98812,2507.5,2507.2,0.55]
[1730442388113,7.97629,2507.5,2507.2,0.55]
[1730442388663,3.98844,2507.3,2506.8,0.8265]
[1730442388945,3.98883,2507.0,2506.8,0.8265]
[1730442389132,3.98869,2507.1,2506.8,0.8265]
[1730442389341,7.97746,2507.1,2506.8,0.8265]
[1730442389860,3.98869,2507.1,2506.8,0.8265]
[1730442390211,7.97744,2507.1,2506.8,0.8265]
[1730442390546,3.98869,2507.1,2506.8,0.8265]
[1730442390708,7.97751,2507.1,2506.8,0.8265]
[1730442390909,3.98869,2507.1,2506.8,0.8265]
[1730442391321,3.98851,2507.2,2506.8,1.64402336]
[1730442391726,3.98869,2507.1,2506.8,0.8265]
[1730442392030,7.97688,2507.3,2506.9,0.55]
[1730442392431,3.98843,2507.3,2506.9,0.55]
[1730442392752,7.97689,2507.3,2506.9,0.55]
[1730442392937,3.98843,2507.3,2506.9,0.55]
[1730442393142,3.98843,2507.3,2507.0,0.8197]
[1730442393459,7.97687,2507.3,2507.0,0.8197]
[1730442393757,3.98852,2507.2,2507.0,0.8197]
[1730442394552,3.98852,2507.2,2506.9,0.55]
[1730442394777,3.98843,2507.3,2506.8,0.8221]
[1730442394778,3.98877,2507.1,2506.8,0.8221]
[1730442394983,3.98877,2507.1,2506.8,1.3721]
[1730442394984,3.98899,2506.9,2506.8,1.3721]
[1730442395275,3.98925,2506.8,2506.6,0.55]
[1730442395473,7.97807,2506.9,2506.6,0.55]
[1730442395641,3.98899,2506.9,2506.6,0.55]
[1730442396544,7.97806,2506.9,2506.6,0.55]
[1730442396741,3.98899,2506.9,2506.6,0.55]
[1730442396973,3.98916,2506.8,2506.6,0.55]
[1730442399955,3.98914,2506.8,2506.6,0.55]
[1730442400143,3.9893,2506.7,2506.5,0.7939]
[1730442400875,3.9895,2506.6,2506.3,1.3034]
[1730442401478,3.9893,2506.7,2506.3,1.3034]
[1730442403295,3.98931,2506.7,2506.3,1.3034]
[1730442403595,3.98931,2506.7,2506.3,2.17466107]
[1730442403780,3.98955,2506.6,2506.3,2.17466107]
[1730442403980,3.98931,2506.7,2506.3,1.3034]
[1730442405207,3.98994,2506.3,2506.2,0.05984707]
[1730442405497,3.9907,2505.9,2505.6,0.7661]
[1730442405851,3.9909,2505.7,2505.3,0.8132]
[1730442407470,3.99117,2505.6,2505.3,0.8132]
[1730442407688,3.99122,2505.5,2505.3,0.8132]
[1730442408074,3.9909,2505.7,2505.3,0.8132]
[1730442408307,3.99109,2505.6,2505.3,0.8132]
[1730442411913,3.99116,2505.6,2505.3,0.8132]
[1730442412319,3.9913,2505.5,2505.3,0.8132]
[1730442412520,7.98232,2505.6,2505.3,0.8132]
[1730442412823,3.99137,2505.4,2505.1,1.3596]
[1730442415207,7.98236,2505.6,2505.1,1.3596]
[1730442415419,7.98233,2505.6,2505.1,2.293968]
[1730442415774,3.99116,2505.6,2505.1,2.293968]
[1730442415977,3.99122,2505.5,2505.1,2.293968]
[1730442417379,4.7882,2506.2,2505.6,0.7587]
[1730442417612,3.9905,2506.0,2505.6,0.7587]
[1730442417815,3.99059,2505.9,2505.6,0.7587]
[1730442418002,7.98107,2506.0,2505.6,0.7587]
[1730442418408,3.99061,2505.9,2505.6,0.7587]
[1730442418787,7.98106,2506.0,2505.6,0.7587]
[1730442419011,7.98103,2506.0,2505.6,0.7587]
[1730442420301,3.99059,2505.9,2505.6,0.7587]
[1730442423836,3.9905,2506.0,2505.6,1.233703]
[1730442423985,3.98988,2506.4,2505.7,0.55]
[1730442424331,3.98988,2506.4,2506.0,0.8173]
[1730442424620,3.98962,2506.5,2506.0,4.8077]
[1730442424853,3.98962,2506.5,2506.0,6.03143867]
[1730442425184,3.98979,2506.4,2506.0,2.04103867]
[1730442425608,3.98956,2506.6,2506.0,2.04103867]
[1730442425787,3.98956,2506.6,2506.1,0.55]
[1730442426408,3.98923,2506.8,2506.3,0.55]
[1730442426629,0.7775,2506.9,2506.3,1.48207233]
[1730442426831,3.98955,2506.6,2506.3,0.55]
[1730442427138,3.98941,2506.7,2506.3,0.55]
[1730442427688,3.98917,2506.8,2506.3,4.53987]
[1730442427883,3.98917,2506.8,2506.4,0.8068]
[1730442428539,3.98906,2506.9,2506.5,0.55]
[1730442430085,3.98933,2506.7,2506.5,0.55]
[1730442431188,3.98933,2506.7,2506.4,0.8068]
[1730442431189,7.97872,2506.7,2506.4,0.8068]
[1730442431389,3.98933,2506.7,2506.4,0.8068]
[1730442432720,7.97872,2506.7,2506.4,0.8068]
[1730442432918,3.98933,2506.7,2506.4,0.8068]
[1730442434027,7.97877,2506.7,2506.4,0.8068]
[1730442434222,3.98933,2506.7,2506.4,0.8068]
[1730442434422,7.97873,2506.7,2506.4,0.8068]
[1730442434636,7.97872,2506.7,2506.4,0.8068]
[1730442435060,3.98933,2506.7,2506.4,0.8068]
[1730442435368,7.97873,2506.7,2506.4,0.8068]
[1730442435673,3.98933,2506.7,2506.4,0.8068]
[1730442436524,3.9891,2506.9,2506.4,0.8068]
[1730442436826,7.97821,2506.9,2506.4,0.8068]
[1730442437021,3.9891,2506.9,2506.4,0.8068]
[1730442437256,3.98924,2506.8,2506.4,1.286476]
[1730442438826,3.7658,2507.1,2506.7,0.55]
[1730442438827,3.98878,2507.1,2506.7,0.55]
[1730442439061,3.98891,2507.0,2506.7,0.55]
[1730442439468,3.98899,2506.9,2506.7,0.55]
[1730442441858,3.98878,2507.1,2506.7,0.55]
[1730442442081,3.98883,2507.0,2506.7,0.55]
[1730442444758,3.98878,2507.1,2506.7,1.081654]
[1730442445492,3.98885,2507.0,2506.7,0.55]
[1730442446164,3.98878,2507.1,2506.7,0.55]
[1730442446564,3.98884,2507.0,2506.7,0.55]
[1730442453801,3.98872,2507.1,2506.7,0.55]
[1730442454780,3.98881,2507.1,2506.7,0.55]
[1730442456513,3.98886,2507.0,2506.7,0.55]
[1730442458983,7.97722,2507.2,2506.7,0.55]
[1730442459312,3.98883,2507.0,2506.7,0.55]
[1730442459667,3.98869,2507.1,2506.7,0.55]
[1730442459895,7.97719,2507.2,2506.8,0.7838]
[1730442460094,3.98857,2507.2,2506.8,0.7838]
[1730442461071,3.98868,2507.1,2506.8,0.7838]
[1730442461270,3.98857,2507.2,2506.8,0.7838]
[1730442461618,0.06934282,2508.2,2507.5,0.7815]
[1730442461923,3.98655,2508.5,2508.0,2.28292598]
[1730442462077,3.9867,2508.4,2508.0,2.28292598]
[1730442463588,4.385205,2508.5,2508.0,2.28292598]
[1730442463793,3.98655,2508.5,2508.0,2.28292598]
[1730442464416,3.98662,2508.4,2508.0,2.28292598]
[1730442464715,3.98662,2508.4,2508.0,0.7815]
[1730442465818,3.98655,2508.5,2508.1,0.55]
[1730442466580,3.0,2508.6,2508.1,0.55]
[1730442466814,6.98629,2508.6,2508.2,0.53983343]
[1730442467116,3.98646,2508.5,2508.2,0.53983343]
[1730442467682,6.9863,2508.6,2508.2,0.53983343]
[1730442468405,3.98647,2508.5,2508.2,0.53983343]
[1730442468605,3.98647,2508.5,2508.1,0.55]
[1730442469815,7.97302,2508.5,2508.1,0.55]
[1730442470039,3.98625,2508.7,2508.2,0.7858]
[1730442470497,3.98638,2508.6,2508.2,0.7858]
[1730442470915,4.16853382,2509.4,2508.1,4.53701]
[1730442471122,4.80294,2509.4,2508.6,0.8257]
[1730442471335,3.98576,2509.0,2508.6,0.8257]
[1730442471642,7.97088,2509.2,2508.7,0.55]
[1730442472145,4.80307,2509.4,2508.8,0.7955]
[1730442472465,3.98534,2509.2,2508.8,0.7955]
[1730442473353,3.98517,2509.4,2508.9,0.55]
[1730442473530,3.98515,2509.4,2509.0,0.8073]
[1730442473857,3.98515,2509.4,2509.1,0.55]
[1730442474313,3.98511,2509.4,2509.1,1.09228094]
[1730442474518,3.98511,2509.4,2509.1,0.55]
[1730442475850,3.9847,2509.6,2509.1,0.55]
[1730442476018,3.98486,2509.5,2509.1,0.55]
[1730442476214,7.96952,2509.6,2509.1,0.55]
[1730442476843,7.96953,2509.6,2509.1,0.55]
[1730442477054,3.98487,2509.5,2509.3,0.55]
[1730442477578,0.1219505,2509.7,2509.0,0.8073]
[1730442477859,3.98549,2509.1,2509.0,0.8073]
[1730442478016,3.98568,2509.0,2508.8,0.7858]
[1730442478942,3.98568,2509.0,2508.9,0.55]
[1730442479323,3.98613,2508.7,2508.6,0.7708]
[1730442479707,3.98641,2508.6,2508.3,0.7708]
[1730442480455,3.98613,2508.7,2508.3,0.7708]
[1730442480622,3.98589,2508.9,2508.4,0.55]
[1730442480823,3.98608,2508.8,2508.4,0.55]
[1730442481153,3.98608,2508.8,2508.4,3.90063382]
[1730442481312,3.98589,2508.9,2508.6,0.55]
[1730442481508,3.98649,2508.5,2508.4,0.55]
[1730442483153,3.98612,2508.7,2508.4,0.55]
[1730442483451,7.97236,2508.7,2508.4,0.55]
[1730442483613,7.97234,2508.7,2508.4,0.55]
[1730442483816,3.98612,2508.7,2508.4,1.09601982]
[1730442484513,3.98637,2508.6,2508.4,1.09601982]
[1730442484718,3.98612,2508.7,2508.4,1.09601982]
[1730442485225,3.98642,2508.6,2508.4,1.09601982]
[1730442485428,3.98642,2508.6,2508.4,0.55]
[1730442486055,3.98581,2508.9,2508.1,0.801]
[1730442486261,3.98708,2508.1,2508.0,0.05979306]
[1730442486467,5.936657,2508.1,2508.0,0.05979306]
[1730442487037,4.74058,2508.1,2508.0,0.05979306]
[1730442487851,0.7535,2508.1,2508.0,0.05979306]
[1730442488227,3.98702,2508.2,2508.0,0.05979306]
[1730442488425,7.97404,2508.2,2508.0,0.05979306]
[1730442488657,3.98702,2508.2,2508.0,0.05979306]
[1730442488860,3.98708,2508.1,2508.0,0.05979306]
[1730442490055,3.98702,2508.2,2508.0,0.05979306]
[1730442491171,7.77381,2508.3,2508.0,0.05979306]
[1730442491379,6.98681,2508.3,2508.0,0.05979306]
[1730442491970,6.98681,2508.3,2507.7,3.98769]
[1730442492275,3.0,2508.3,2507.8,0.8088]
[1730442492962,6.98685,2508.3,2507.8,0.8088]
[1730442493173,3.98692,2508.2,2507.8,0.8088]
[1730442493485,7.97397,2508.2,2507.8,0.8088]
[1730442493841,3.98692,2508.2,2507.8,0.8088]
[1730442494454,7.97398,2508.2,2507.8,0.8088]
[1730442494764,3.98692,2508.2,2507.8,0.8088]
[1730442495175,7.97397,2508.2,2507.8,0.8088]
[1730442495500,3.98692,2508.2,2507.8,0.8088]
[1730442495849,6.98676,2508.3,2507.9,0.55]
[1730442497859,3.0,2508.3,2507.9,0.55]
[1730442498696,6.98691,2508.3,2507.9,0.55]
[1730442501260,3.0,2508.3,2507.6,0.8015]
[1730442501460,3.98764,2507.8,2507.6,0.8015]
[1730442501772,3.98732,2508.0,2507.6,0.8015]
[1730442501986,7.97402,2508.2,2507.6,4.78928]
[1730442502302,3.35063382,2508.0,2507.2,0.8045]
[1730442502470,3.98804,2507.5,2507.2,0.8045]
[1730442502799,3.98819,2507.4,2507.2,0.8045]
[1730442503096,3.98804,2507.5,2507.2,0.8045]
[1730442504066,3.98828,2507.4,2507.1,0.83250303]
[1730442504261,3.9882,2507.4,2507.1,0.83250303]
[1730442504467,3.98798,2507.6,2507.1,0.83250303]
[1730442504662,3.98829,2507.4,2507.1,0.83250303]
[1730442505699,3.98829,2507.4,2507.2,0.55]
[1730442506108,3.98829,2507.4,2507.1,0.55]
[1730442506265,3.98829,2507.4,2507.0,2.03565455]
[1730442506266,0.398829,2507.4,2507.0,2.03565455]
[1730442506466,0.398829,2507.4,2506.8,0.7814]
[1730442506467,3.98867,2507.1,2506.8,0.7814]
[1730442506674,7.97685,2507.3,2506.8,0.7814]
[1730442506873,3.98835,2507.3,2506.8,0.7814]
[1730442507074,3.98869,2507.1,2506.8,0.7814]
[1730442508699,4.5089279,2507.3,2506.8,0.7814]
[1730442508935,3.9882,2507.4,2506.9,4.53895]
[1730442509236,7.97652,2507.4,2506.9,0.55]
[1730442509528,3.98838,2507.3,2506.9,0.55]
[1730442510906,3.9882,2507.4,2506.9,0.55]
[1730442510907,3.9882,2507.4,2506.9,4.53898]
[1730442511596,3.9882,2507.4,2506.9,0.55]
[1730442512547,7.97649,2507.4,2506.9,0.55]
[1730442512833,3.9882,2507.4,2506.9,5.071015]
[1730442513297,3.9882,2507.4,2506.9,1.082045]
[1730442513832,3.9882,2507.4,2507.0,0.7799]
[1730442514833,3.98835,2507.3,2507.0,0.7799]
[1730442515402,3.9882,2507.4,2507.0,0.7799]
[1730442516232,7.97649,2507.4,2507.0,0.7799]
[1730442516614,3.98836,2507.3,2507.0,0.7799]
[1730442518035,3.9882,2507.4,2507.0,0.7799]
[1730442518331,3.0,2507.5,2507.0,0.7799]
[1730442518531,3.0,2507.5,2507.0,1.311779]
[1730442518532,6.98811,2507.5,2507.0,1.311779]
[1730442518865,3.98821,2507.4,2507.0,1.311779]
[1730442523507,7.97653,2507.4,2507.0,1.311779]
[1730442523829,3.9885,2507.3,2507.0,0.7799]
[1730442524138,3.98859,2507.2,2507.0,0.7799]
[1730442525142,3.98828,2507.4,2507.0,0.7799]
[1730442525456,7.97662,2507.4,2507.0,0.7799]
[1730442525608,3.98828,2507.4,2507.0,0.7799]
[1730442526024,3.0,2507.5,2507.0,4.76861]
[1730442526208,3.0,2507.5,2507.1,0.930759]
[1730442526416,3.0,2507.5,2507.0,4.76861]
[1730442526417,3.0,2507.5,2507.0,4.7686]
[1730442526724,6.98804,2507.5,2507.0,0.7799]
[1730442528113,3.98804,2507.5,2507.0,4.76872]
[1730442528445,7.97622,2507.5,2507.0,0.7799]
[1730442528750,3.98829,2507.4,2507.0,0.7799]
[1730442529043,3.98804,2507.5,2507.0,5.300597]
[1730442529611,7.97617,2507.5,2507.0,5.300597]
[1730442530226,3.98804,2507.5,2507.0,5.300597]
[1730442530438,7.97615,2507.5,2507.0,5.300597]
[1730442530639,3.98804,2507.5,2507.0,5.300597]
[1730442530839,3.98804,2507.5,2507.1,0.75992949]
[1730442531054,3.98804,2507.5,2507.0,5.300597]
[1730442531774,7.97615,2507.5,2507.0,5.300597]
[1730442531968,3.98804,2507.5,2507.0,5.300597]
[1730442532263,7.97618,2507.5,2507.0,5.300597]
[1730442533142,3.98804,2507.5,2507.0,5.300597]
[1730442533901,7.97616,2507.5,2507.0,5.300597]
[1730442534070,3.98804,2507.5,2507.0,5.300597]
[1730442534360,7.97617,2507.5,2507.0,1.311777]
[1730442534549,7.97618,2507.5,2507.1,0.55]
[1730442535329,3.98804,2507.5,2507.1,0.55]
[1730442536675,3.98821,2507.4,2507.1,0.55]
[1730442536976,3.98804,2507.5,2507.1,0.55]
[1730442538439,7.97619,2507.5,2507.1,0.55]
[1730442538689,3.98804,2507.5,2507.1,0.55]
[1730442540360,3.98804,2507.5,2507.1,0.84847793]
[1730442541499,3.98804,2507.5,2507.1,0.84847798]
[1730442541844,3.98804,2507.5,2507.2,0.8099]
[1730442542692,3.9883,2507.4,2507.2,0.8099]
[1730442543193,3.98804,2507.5,2507.2,0.8099]
[1730442543773,3.98804,2507.5,2507.2,0.29866609]
[1730442543774,4.50097674,2507.3,2507.2,0.29866609]
[1730442544092,4.50097674,2507.3,2506.5,0.7653]
[1730442544093,3.9893,2506.8,2506.5,0.7653]
[1730442545178,3.98926,2506.8,2506.5,0.7653]
[1730442545798,3.98904,2506.9,2506.5,0.7653]
[1730442546182,3.98889,2507.0,2506.5,0.7653]
[1730442546183,3.98917,2506.8,2506.5,0.7653]
[1730442546621,3.98889,2507.0,2506.5,0.7653]
[1730442546820,3.98889,2507.0,2506.5,1.06409733]
[1730442547022,3.98889,2507.0,2506.5,0.7653]
[1730442547189,2.29107674,2507.1,2506.5,0.7653]
[1730442547397,3.98924,2506.8,2506.5,0.7653]
[1730442547809,7.97851,2506.8,2506.5,0.7653]
[1730442548122,7.97854,2506.8,2506.5,0.7653]
[1730442548692,7.97848,2506.8,2506.5,0.7653]
[1730442549596,3.98924,2506.8,2506.5,0.7653]
[1730442549811,7.97847,2506.8,2506.5,0.7653]
[1730442550417,3.98931,2506.7,2506.5,0.7653]
[1730442550921,3.98923,2506.8,2506.5,0.7653]
[1730442551437,7.97847,2506.8,2506.5,0.7653]
[1730442551981,3.98923,2506.8,2506.5,0.7653]
[1730442552193,3.98935,2506.7,2506.3,0.7523]
[1730442552395,3.98935,2506.7,2506.4,0.55]
[1730442553310,3.98923,2506.8,2506.4,0.55]
[1730442553613,7.97847,2506.8,2506.4,0.55]
[1730442553817,3.9894,2506.7,2506.4,0.55]
[1730442554741,3.9894,2506.7,2506.3,0.7523]
[1730442554920,3.98955,2506.6,2506.3,0.7523]
[1730442555115,4.7451,2506.7,2506.3,0.7523]
[1730442555329,3.9894,2506.7,2506.3,0.7523]
[1730442555737,2.25667674,2506.9,2506.3,1.77565067]
[1730442555911,6.24580674,2506.9,2506.3,5.76556067]
[1730442556312,3.9892,2506.8,2506.3,5.76556067]
[1730442556540,6.24580674,2506.9,2506.4,0.55]
[1730442556850,3.98917,2506.8,2506.4,0.55]
[1730442558353,3.98917,2506.8,2506.3,5.76556067]
[1730442558354,3.98976,2506.5,2506.3,0.7523]
[1730442558658,3.98956,2506.6,2506.3,0.7523]
[1730442558867,3.98966,2506.5,2506.3,0.7523]
[1730442559453,7.97942,2506.5,2506.4,0.12481728]
[1730442559751,9.30958967,2506.5,2506.4,0.12481728]
[1730442560050,5.31982967,2506.5,2506.4,0.12481728]
[1730442560216,6.82080641,2506.5,2506.4,0.12481728]
[1730442560420,5.31982967,2506.5,2506.4,0.12481728]
[1730442562067,3.98948,2506.6,2506.4,0.12481728]
[1730442562352,3.98948,2506.6,2506.2,0.19970579]
[1730442562567,3.98948,2506.6,2506.3,0.12481408]
[1730442562715,3.98948,2506.6,2506.4,0.12481408]
[1730442563027,3.98948,2506.6,2506.2,0.19970579]
[1730442563209,3.98948,2506.6,2506.3,0.12481789]
[1730442563415,3.98925,2506.8,2506.4,1.39815772]
[1730442563752,3.98901,2506.9,2506.5,0.57415772]
[1730442563914,3.98901,2506.9,2506.6,0.32452373]
[1730442564115,3.98914,2506.8,2506.7,0.32452373]
[1730442564625,3.98914,2506.8,2506.7,0.12481794]
[1730442564855,3.98914,2506.8,2506.7,0.32451349]
[1730442565650,3.98914,2506.8,2506.7,0.32450403]
[1730442565841,3.989,2506.9,2506.7,0.32450403]
[1730442566042,3.989,2506.9,2506.8,0.12480924]
[1730442566237,4.78627,2507.1,2506.8,0.12480924]
[1730442566441,3.98877,2507.1,2506.9,1.11628088]
[1730442566639,3.98877,2507.1,2507.0,0.12480924]
[1730442566839,5.190147,2507.1,2507.0,0.12480924]
[1730442567221,3.98903,2506.9,2506.6,0.7918]
[1730442567413,7.97811,2506.9,2506.7,0.32449436]
[1730442567646,3.98903,2506.9,2506.8,0.32449554]
[1730442567848,3.98903,2506.9,2506.8,0.32449656]
[1730442568449,3.98903,2506.9,2506.8,0.12480552]
[1730442568627,3.98903,2506.9,2506.8,0.32449687]
[1730442568820,3.98903,2506.9,2506.8,0.12480552]
[1730442569027,3.98899,2506.9,2506.8,0.32449633]
[1730442569225,3.98899,2506.9,2506.8,0.32449283]
[1730442569479,3.98899,2506.9,2506.8,0.12480628]
[1730442569627,3.98899,2506.9,2506.8,0.32449213]
[1730442572546,3.98899,2506.9,2506.5,0.55]
[1730442572744,3.98899,2506.9,2506.8,0.32448796]
[1730442575440,7.97778,2507.0,2506.8,0.32448796]
[1730442575772,7.97778,2507.0,2506.9,0.32448663]
[1730442575973,7.97778,2507.0,2506.9,0.12480306]
[1730442576276,3.98883,2507.0,2506.9,0.12480219]
[1730442576438,3.98883,2507.0,2506.9,0.32448562]
[1730442577056,3.98883,2507.0,2506.9,0.12480219]
[1730442577257,3.98883,2507.0,2506.9,0.32448607]
[1730442578179,3.98869,2507.1,2506.9,0.32448607]
[1730442578344,6.98869,2507.1,2507.0,0.32448607]
[1730442578745,3.98869,2507.1,2507.0,0.12480219]
[1730442579018,3.98869,2507.1,2507.0,0.32448022]
[1730442579274,3.98852,2507.2,2507.0,0.32448022]
[1730442579275,7.97712,2507.2,2507.0,0.32448022]
[1730442579585,3.98867,2507.1,2506.8,0.7548]
[1730442579756,3.98867,2507.1,2506.9,0.57404559]
[1730442580073,3.98867,2507.1,2506.8,0.7548]
[1730442580273,3.98867,2507.1,2506.9,0.44925373]
[1730442580472,3.98867,2507.1,2507.0,0.32446045]
[1730442581143,3.98867,2507.1,2507.0,0.57404386]
[1730442582070,3.98867,2507.1,2507.0,0.32446045]
[1730442582381,3.98867,2507.1,2507.0,0.57404686]
[1730442583164,3.98867,2507.1,2507.0,0.57403524]
[1730442583864,3.98867,2507.1,2507.0,0.3244547]
[1730442583865,4.77497,2507.1,2507.0,0.3244547]
[1730442585108,4.77497,2507.1,2507.0,0.57404942]
[1730442586870,4.77497,2507.1,2507.0,0.57406484]
[1730442588791,3.98867,2507.1,2507.0,0.57406484]
[1730442590682,3.98867,2507.1,2506.6,2.09884583]
[1730442590921,3.98867,2507.1,2506.8,0.0297547]
[1730442591089,3.98867,2507.1,2506.9,0.57406279]
[1730442591425,3.98867,2507.1,2507.0,0.57406211]
[1730442597413,3.98867,2507.1,2507.0,0.57404048]
[1730442600313,3.98853,2507.2,2507.0,0.57404048]
[1730442600628,3.98853,2507.2,2506.9,0.7821]
[1730442600834,3.98875,2507.1,2506.9,0.7821]
[1730442601035,3.98875,2507.1,2507.0,0.57405592]
[1730442601193,5.48993436,2507.3,2507.0,0.57405592]
[1730442601591,6.30095436,2507.5,2507.1,0.57405592]
[1730442601735,3.98835,2507.3,2507.2,0.57405592]
[1730442602115,6.98832,2507.4,2506.9,0.8118653]
[1730442602116,3.98877,2507.1,2506.9,0.8118653]
[1730442602319,3.98877,2507.1,2507.0,0.57404141]
[1730442602726,4.78137,2507.1,2507.0,0.57404141]
[1730442603439,3.98885,2507.0,2506.7,0.7524]
[1730442603603,3.98885,2507.0,2506.8,0.40414846]
[1730442603804,3.98885,2507.0,2506.9,0.57405559]
[1730442604338,3.98868,2507.1,2506.9,0.57405559]
[1730442604645,3.98868,2507.1,2507.0,0.57405559]
[1730442608760,3.98851,2507.2,2507.0,0.57405559]
[1730442609109,3.98796,2507.6,2507.1,1.87177371]
[1730442609218,3.98829,2507.4,2507.2,1.24020198]
[1730442609417,3.98829,2507.4,2507.3,0.57405559]
[1730442610539,3.98829,2507.4,2507.1,0.8193]
[1730442610723,3.98829,2507.4,2507.3,0.12477777]
[1730442610927,3.98829,2507.4,2507.3,0.57397774]
[1730442613154,7.97616,2507.5,2507.3,0.57397774]
[1730442613372,3.98783,2507.7,2507.4,0.57397086]
[1730442613531,3.9876,2507.8,2507.5,1.33927086]
[1730442613739,3.9876,2507.8,2507.6,0.3244222]
[1730442613965,6.9875,2507.9,2507.5,0.7653]
[1730442613966,7.97553,2507.7,2507.5,0.7653]
[1730442614169,3.98771,2507.7,2507.5,0.7653]
[1730442614375,3.98771,2507.7,2507.6,0.32438853]
[1730442614546,3.98771,2507.7,2507.5,0.7653]
[1730442614741,3.98771,2507.7,2507.6,0.32438654]
[1730442616460,6.7368928,2507.7,2507.6,0.32438654]
[1730442616780,7.5082928,2507.7,2507.6,0.12476405]
[1730442617478,3.98787,2507.6,2507.5,0.046398]
[1730442617679,3.98787,2507.6,2507.5,0.370809]
[1730442621847,5.556328,2507.6,2507.5,0.370809]
[1730442622092,5.556328,2507.6,2507.5,0.17117146]
[1730442622093,8.556328,2507.6,2507.5,0.17117146]
[1730442624262,8.556328,2507.6,2507.5,0.046398]
[1730442625893,8.566328,2507.6,2507.5,0.046398]
[1730442626107,8.566328,2507.6,2507.5,8e-06]
[1730442628553,10.53950504,2507.6,2507.5,8e-06]
[1730442628751,11.0237537,2507.6,2507.5,8e-06]
[1730442629289,9.52224934,2507.6,2507.5,8e-06]
[1730442629997,15.2247537,2507.6,2507.5,8e-06]
[1730442630349,11.19518446,2507.6,2507.5,8e-06]
[1730442634099,9.6936801,2507.6,2507.5,8e-06]
[1730442634254,8.576328,2507.6,2507.5,8e-06]
[1730442634456,8.64569278,2507.6,2507.5,8e-06]
[1730442634657,9.12994144,2507.6,2507.5,8e-06]